bitfinex-derivatives/quotes_SOLF0:USTF0_20250714
["timestamp","ask_amount","ask_price","bid_price","bid_amount"]
[1752458242337,3.43,162.72,162.71,11.03164708]
[1752458243041,3.43,162.75,162.71,2.98834708]
[1752458243233,3.43,162.75,162.72,1.9]
[1752458243437,3.43,162.75,162.73,1.9]
[1752458243638,3.43,162.75,162.73,4.88834708]
[1752458243832,3.43,162.76,162.73,4.88834708]
[1752458244030,3.43,162.76,162.75,2.98834708]
[1752458244233,3.43,162.76,162.73,11.03104708]
[1752458244736,3.43,162.75,162.64,2.98834708]
[1752458245040,3.43,162.75,162.72,2.98834708]
[1752458245235,3.43,162.78,162.7,4.88834708]
[1752458245939,3.43,162.73,162.7,11.03224708]
[1752458246239,3.43,162.73,162.7,4.88834708]
[1752458247141,3.43,162.73,162.71,6.1435]
[1752458248537,6.1423,162.75,162.71,1.9]
[1752458248742,3.43,162.72,162.71,1.9]
[1752458249241,3.43,162.72,162.71,8.0434]
[1752458249440,3.43,162.72,162.7,2.98834708]
[1752458249638,3.43,162.72,162.7,4.88834708]
[1752458250142,3.43,162.71,162.7,11.03234708]
[1752458251444,3.58,162.74,162.71,1.9]
[1752458251945,3.58,162.74,162.72,1.9]
[1752458252138,3.58,162.74,162.72,8.0431]
[1752458253343,3.58,162.74,162.72,11.03144708]
[1752458254142,3.58,162.74,162.73,6.143]
[1752458254344,3.58,162.74,162.73,8.043]
[1752458255849,3.58,162.74,162.72,2.98834708]
[1752458256747,3.58,162.74,162.72,9.13144708]
[1752458257745,3.58,162.74,162.73,6.143]
[1752458260147,3.58,162.74,162.73,8.043]
[1752458260748,3.58,162.74,162.73,11.03134708]
[1752458261549,3.58,162.81,162.74,1.9]
[1752458261748,3.58,162.81,162.77,2.98834708]
[1752458262245,221.40268368,162.83,162.77,2.98834708]
[1752458262246,6.1409,162.79,162.77,2.98834708]
[1752458262443,3.58,162.78,162.77,2.98834708]
[1752458262644,3.58,162.78,162.76,6.1417]
[1752458262844,3.58,162.78,162.76,9.13004708]
[1752458264855,3.58,162.78,162.77,6.1414]
[1752458265152,3.58,162.78,162.76,2.98834708]
[1752458265754,3.58,162.78,162.76,9.12994708]
[1752458268155,3.58,162.78,162.76,11.02994708]
[1752458269055,3.58,162.78,162.76,9.12994708]
[1752458269456,9.7211,162.78,162.76,9.12994708]
[1752458269760,3.58,162.77,162.76,2.98834708]
[1752458273356,3.58,162.77,162.76,9.13014708]
[1752458274055,3.58,162.77,162.76,11.03014708]
[1752458276760,3.58,162.77,162.76,9.13014708]
[1752458276960,3.58,162.77,162.76,11.03014708]
[1752458277264,3.58,162.77,162.76,9.13014708]
[1752458278460,3.58,162.77,162.76,11.03014708]
[1752458279058,3.58,162.77,162.76,9.13014708]
[1752458280060,3.58,162.77,162.76,11.03014708]
[1752458280961,3.58,162.77,162.76,9.95384446]
[1752458281365,3.58,162.77,162.76,8.05384446]
[1752458282065,3.58,162.77,162.76,9.95384446]
[1752458282459,3.58,162.77,162.76,8.0418]
[1752458282664,3.58,162.77,162.76,9.95384446]
[1752458283368,3.49,162.78,162.77,6.1412]
[1752458283570,3.49,162.78,162.77,8.05324446]
[1752458283768,3.49,162.78,162.77,9.94324446]
[1752458284170,3.49,162.78,162.77,8.05324446]
[1752458285767,3.49,162.78,162.77,9.94324446]
[1752458285970,6.1397,162.82,162.79,6.1405]
[1752458286170,6.1397,162.82,162.8,1.91204446]
[1752458286573,3.49,162.81,162.72,1.89]
[1752458286768,3.49,162.84,162.81,1.89]
[1752458287073,3.49,162.84,162.83,1.91204446]
[1752458287271,3.49,162.84,162.73,530.58]
[1752458287573,3.49,162.83,162.8,6.14]
[1752458287773,3.49,162.83,162.82,1.91204446]
[1752458288072,9.6292,162.83,162.82,1.91204446]
[1752458288367,3.49,162.83,162.82,1.91204446]
[1752458288773,3.49,162.83,162.81,1.91204446]
[1752458288975,3.49,162.83,162.8,9.12666999]
[1752458289164,3.49,162.83,162.81,6.1399]
[1752458289368,3.49,162.83,162.79,1.89]
[1752458289573,5.16529275,162.87,162.82,2.98646999]
[1752458289775,9.6283,162.86,162.82,11.01606999]
[1752458290076,3.49,162.85,162.82,9.12606999]
[1752458291275,6.1385,162.85,162.82,9.12606999]
[1752458291475,3.49,162.84,162.82,9.12606999]
[1752458292478,3.49,162.84,162.83,8.0292]
[1752458295286,6.1377,162.87,162.83,8.0292]
[1752458295480,3.49,162.85,162.84,4.87646999]
[1752458295880,3.49,162.85,162.84,2.98646999]
[1752458297878,5.16529275,162.9,162.84,4.87646999]
[1752458298078,3.49,162.89,162.85,1.89]
[1752458298274,6.1374,162.88,162.84,11.01496999]
[1752458298479,3.49,162.87,162.84,11.01496999]
[1752458299278,3.49,162.87,162.82,6.1395]
[1752458299480,3.49,162.87,162.82,2.98646999]
[1752458299682,3.49,162.87,162.82,4.87646999]
[1752458299982,3.49,162.87,162.82,1.89]
[1752458300187,3.49,162.87,162.82,4.87646999]
[1752458300379,3.49,162.85,162.83,6.139]
[1752458300580,3.49,162.85,162.83,1.89]
[1752458302087,3.49,162.89,162.83,8.029]
[1752458302587,6.1379,162.87,162.84,6.1388]
[1752458302786,3.49,162.86,162.84,6.1388]
[1752458304482,9.6281,162.86,162.84,6.1388]
[1752458304680,3.49,162.85,162.83,8.029]
[1752458306488,3.49,162.83,162.82,2.98646999]
[1752458307488,3.49,162.83,162.82,4.87646999]
[1752458307688,3.49,162.83,162.82,11.01606999]
[1752458308784,3.49,162.83,162.82,4.87646999]
[1752458309090,3.49,162.83,162.79,2.98646999]
[1752458309386,6.1398,162.82,162.79,9.12696999]
[1752458309688,3.49,162.81,162.79,9.12696999]
[1752458310488,3.49,162.81,162.8,6.1403]
[1752458311787,3.49,162.81,162.77,179.54]
[1752458312087,3.49,162.81,162.78,2.98646999]
[1752458312291,3.49,162.81,162.78,6.1408]
[1752458312480,3.49,162.81,162.76,2.98646999]
[1752458313087,3.49,162.81,162.74,2.98646999]
[1752458313488,2.98646999,162.82,162.74,2.98646999]
[1752458313690,3.61,162.77,162.74,2.98646999]
[1752458314092,3.61,162.76,162.74,2.98646999]
[1752458314296,3.61,162.76,162.74,4.88646999]
[1752458314896,3.61,162.76,162.72,4.88646999]
[1752458315090,3.61,162.76,162.73,1.9]
[1752458316092,3.61,162.76,162.74,6.1426]
[1752458317999,3.61,162.76,162.75,6.1422]
[1752458320393,3.61,162.76,162.75,8.0422]
[1752458320596,3.61,162.76,162.75,6.1422]
[1752458325398,3.61,162.76,162.75,8.0422]
[1752458325799,3.61,162.76,162.75,6.1422]
[1752458326495,3.61,162.82,162.77,1.9]
[1752458326702,3.61,162.82,162.81,2.98646999]
[1752458327198,3.61,162.82,162.79,2.98646999]
[1752458327801,3.61,162.81,162.79,9.12696999]
[1752458328002,3.61,162.81,162.79,2.98646999]
[1752458328395,3.61,162.81,162.79,9.12696999]
[1752458328597,3.61,162.81,162.75,2.98646999]
[1752458329097,3.61,162.78,162.76,6.1416]
[1752458329497,3.61,162.78,162.76,6.1418]
[1752458331706,3.61,162.77,162.75,6.1422]
[1752458332304,3.61,162.77,162.76,6.1418]
[1752458333114,3.61,162.77,162.75,6.1421]
[1752458333809,3.61,162.76,162.74,6.1424]
[1752458334009,3.61,162.76,162.73,4.88646999]
[1752458334810,3.61,162.76,162.74,6.1426]
[1752458335813,3.61,162.76,162.75,6.1422]
[1752458337011,3.61,162.76,162.75,9.12866999]
[1752458337208,3.61,162.76,162.75,11.02866999]
[1752458341218,5.16529275,162.85,162.79,6.1405]
[1752458341418,5.16529275,162.86,162.79,2.98646999]
[1752458341615,3.48,162.85,162.79,2.98646999]
[1752458341816,8.64529275,162.85,162.79,2.98646999]
[1752458342008,3.48,162.84,162.77,2.98646999]
[1752458342208,3.48,162.84,162.78,6.1411]
[1752458343120,6.1402,162.81,162.78,6.1411]
[1752458343312,3.48,162.8,162.78,6.1411]
[1752458344421,3.48,162.8,162.75,2.98646999]
[1752458344912,6.141,162.79,162.76,6.1417]
[1752458345112,3.48,162.78,162.76,6.1417]
[1752458349023,3.48,162.78,162.75,2.98646999]
[1752458349321,3.48,162.79,162.77,4.88646999]
[1752458349724,3.48,162.79,162.77,2.98646999]
[1752458349922,3.48,162.78,162.77,2.98646999]
[1752458351128,3.48,162.78,162.77,9.12786999]
[1752458351331,3.48,162.78,162.77,11.02786999]
[1752458351524,3.48,162.82,162.78,1.9]
[1752458351725,3.48,162.82,162.79,2.98646999]
[1752458351929,3.48,162.8,162.79,2.98646999]
[1752458353232,9.6203,162.8,162.77,11.02776999]
[1752458353429,3.48,162.79,162.77,9.12776999]
[1752458355833,3.48,162.79,162.77,11.02776999]
[1752458356334,3.48,162.79,162.78,8.0411]
[1752458358635,3.48,162.79,162.77,9.12776999]
[1752458360134,3.48,162.79,162.78,6.1411]
[1752458360333,3.48,162.79,162.78,8.0411]
[1752458360829,3.48,162.79,162.78,6.1411]
[1752458362940,3.48,162.79,162.77,11.02786999]
[1752458364234,3.48,162.79,162.78,1.9]
[1752458365136,3.48,162.79,162.78,8.0411]
[1752458365342,3.48,162.82,162.78,1.9]
[1752458365532,3.48,162.82,162.79,4.88646999]
[1752458365731,3.48,162.82,162.79,2.98646999]
[1752458366334,3.48,162.82,162.79,11.02696999]
[1752458366535,3.48,162.82,162.79,2.98646999]
[1752458366841,3.48,162.82,162.78,2.98646999]
[1752458367440,3.48,162.81,162.79,6.1403]
[1752458367642,6.1397,162.82,162.8,1.9]
[1752458368144,3.48,162.81,162.8,8.0403]
[1752458369239,3.48,162.81,162.8,6.1403]
[1752458371739,3.48,162.81,162.79,8.0405]
[1752458371941,3.48,162.81,162.79,6.1405]
[1752458375446,3.48,162.81,162.79,8.0505]
[1752458376347,3.48,162.81,162.78,11.03736999]
[1752458376548,3.48,162.81,162.78,2.98646999]
[1752458377347,6.1406,162.8,162.72,9.86217705]
[1752458377547,6.1406,162.8,162.77,4.89646999]
[1752458377548,3.36,162.79,162.77,4.89646999]
[1752458378049,3.36,162.79,162.78,6.1411]
[1752458379350,3.36,162.79,162.77,11.03786999]
[1752458380050,3.36,162.79,162.78,6.1411]
[1752458380548,6.1407,162.79,162.77,4.89646999]
[1752458380851,3.36,162.78,162.77,9.12776999]
[1752458381045,3.36,162.78,162.77,11.03776999]
[1752458383542,6.14,162.81,162.79,1.91]
[1752458383543,3.36,162.8,162.79,1.91]
[1752458384756,3.36,162.8,162.79,8.0507]
[1752458384951,3.36,162.8,162.79,11.03753501]
[1752458385252,3.36,162.8,162.79,9.12753501]
[1752458385957,3.36,162.8,162.77,2.98683501]
[1752458386660,3.36,162.79,162.77,9.12793501]
[1752458387149,3.36,162.79,162.78,6.1411]
[1752458387755,3.36,162.78,162.77,2.98683501]
[1752458389063,3.36,162.78,162.77,11.03823501]
[1752458390959,3.36,162.78,162.77,9.96335416]
[1752458393261,3.36,162.8,162.78,8.0508]
[1752458393461,3.36,162.82,162.79,1.91195416]
[1752458393861,3.36,162.82,162.79,8.05245416]
[1752458394761,9.4998,162.82,162.79,8.05245416]
[1752458394962,3.36,162.81,162.79,8.05245416]
[1752458395662,3.36,162.81,162.8,6.1403]
[1752458397462,3.36,162.81,162.79,1.91195416]
[1752458397463,3.36,162.81,162.79,6.1405]
[1752458397662,3.36,162.81,162.8,1.91170468]
[1752458401367,9.4999,162.81,162.79,8.05220468]
[1752458401571,3.44,162.8,162.78,1.91170468]
[1752458402071,3.44,162.8,162.78,8.05240468]
[1752458402365,3.44,162.8,162.79,1.91170468]
[1752458406069,3.44,162.8,162.79,6.1407]
[1752458406270,3.44,162.8,162.79,8.05240468]
[1752458406470,3.44,162.8,162.79,9.93240468]
[1752458406670,3.44,162.8,162.79,8.05240468]
[1752458407275,3.44,162.8,162.79,9.93240468]
[1752458408366,6.44,162.82,162.81,8.0199]
[1752458408570,3.44,162.83,162.82,1.88]
[1752458408771,5.16529275,162.87,162.83,3.58]
[1752458409069,6.1373,162.88,162.86,1.91170468]
[1752458409276,6.1373,162.88,162.87,1.91170468]
[1752458409970,11.30249275,162.89,162.87,1.91170468]
[1752458410171,5.16529275,162.89,162.88,1.91170468]
[1752458410378,10.16529275,162.9,162.88,1.91170468]
[1752458410775,3.44,162.89,162.88,1.91170468]
[1752458411075,3.44,162.89,162.87,2.98397234]
[1752458411473,9.5772,162.89,162.87,2.98397234]
[1752458411777,3.44,162.88,162.86,9.7178]
[1752458412078,3.44,162.88,162.87,12.70167234]
[1752458412269,3.44,162.88,162.87,6.56397234]
[1752458412878,3.44,162.89,162.88,3.58]
[1752458413670,3.0,162.9,162.88,3.58]
[1752458413871,3.44,162.88,162.87,6.56397234]
[1752458414072,3.0,162.9,162.88,3.58]
[1752458414385,3.0,162.9,162.89,12.70087234]
[1752458414689,6.44,162.9,162.89,12.70087234]
[1752458415882,6.44,162.9,162.89,6.56397234]
[1752458416583,6.44,162.9,162.89,12.70087234]
[1752458416875,3.0,162.9,162.8,3.58]
[1752458417085,3.44,162.89,162.88,6.56397234]
[1752458417789,3.0,162.9,162.89,3.58]
[1752458418586,6.44,162.9,162.89,6.56397234]
[1752458420283,6.44,162.9,162.89,2.98397234]
[1752458420682,3.44,162.89,162.87,6.56397234]
[1752458420985,3.44,162.89,162.88,3.58]
[1752458422088,3.44,162.88,162.87,2.98397234]
[1752458422290,3.44,162.89,162.87,2.98397234]
[1752458422686,3.44,162.89,162.88,3.58]
[1752458426096,9.5769,162.89,162.88,3.58]
[1752458426298,3.44,162.88,162.86,3.58]
[1752458426798,3.44,162.88,162.86,9.7179]
[1752458426995,3.44,162.88,162.87,3.58]
[1752458427397,3.44,162.88,162.87,9.7177]
[1752458427594,3.44,162.89,162.87,6.56397234]
[1752458427794,3.44,162.89,162.88,3.58]
[1752458428096,3.03875841,162.9,162.88,3.58]
[1752458428298,6.47875841,162.9,162.88,3.58]
[1752458428492,3.44,162.89,162.88,3.58]
[1752458428800,3.44,162.89,162.88,9.7173]
[1752458429293,6.47875841,162.9,162.88,3.58]
[1752458429597,6.47875841,162.9,162.89,9.7169]
[1752458430203,3.03875841,162.9,162.89,12.70087234]
[1752458430794,6.50875841,162.9,162.89,12.70087234]
[1752458434901,3.03875841,162.9,162.89,12.70087234]
[1752458435306,6.50875841,162.9,162.89,12.70087234]
[1752458436507,6.50875841,162.9,162.88,6.1372]
[1752458436708,3.47,162.89,162.88,6.1372]
[1752458437203,3.47,162.89,162.88,9.5072]
[1752458437408,6.47,162.9,162.89,9.5069]
[1752458440203,3.0,162.9,162.89,9.5069]
[1752458447608,3.47,162.95,162.9,2.98397234]
[1752458447815,3.47,162.95,162.91,2.33]
[1752458448313,3.47,162.95,162.9,2.98397234]
[1752458448512,9.6048,162.95,162.92,8.4655]
[1752458448816,3.47,162.94,162.92,8.4655]
[1752458449616,3.47,162.94,162.93,6.1354]
[1752458450119,3.47,162.94,162.92,11.44957234]
[1752458450313,3.47,162.94,162.92,9.11957234]
[1752458451818,3.47,162.93,162.9,2.98397234]
[1752458452013,3.47,162.93,162.9,5.31397234]
[1752458452620,3.47,162.93,162.92,6.1358]
[1752458454317,3.47,162.93,162.9,5.31397234]
[1752458454516,3.47,162.93,162.9,2.33]
[1752458454919,3.47,162.93,162.89,2.98397234]
[1752458454920,6.1355,162.93,162.89,5.31397234]
[1752458455118,3.47,162.92,162.89,5.31397234]
[1752458455326,3.47,162.92,162.9,6.1362]
[1752458458623,3.47,162.92,162.9,8.4662]
[1752458458825,3.47,162.92,162.91,6.1362]
[1752458459325,3.47,162.92,162.91,11.45017234]
[1752458459824,3.47,162.92,162.91,9.12017234]
[1752458460024,3.47,162.92,162.91,2.98397234]
[1752458462321,3.59,162.91,162.88,2.98397234]
[1752458462528,3.59,162.91,162.89,2.35]
[1752458462725,3.59,162.92,162.89,2.35]
[1752458463522,3.59,162.92,162.86,5.33347897]
[1752458463921,3.59,162.89,162.87,6.1375]
[1752458465322,3.59,162.88,162.86,11.47223641]
[1752458466129,3.59,162.88,162.87,6.1377]
[1752458466828,5.16213037,162.93,162.88,6.137]
[1752458467028,3.59,162.92,162.89,2.35]
[1752458467225,3.59,162.91,162.89,2.35]
[1752458467933,5.16213037,162.94,162.89,2.35]
[1752458468128,3.59,162.9,162.89,2.35]
[1752458468430,3.59,162.9,162.89,8.4869]
[1752458470424,6.1355,162.93,162.9,6.1364]
[1752458470629,3.59,162.92,162.9,8.4864]
[1752458471131,3.59,162.92,162.91,6.1362]
[1752458471627,3.59,162.95,162.9,2.35]
[1752458472230,6.1351,162.94,162.91,6.1359]
[1752458472423,3.59,162.93,162.91,6.1359]
[1752458472732,3.59,162.93,162.9,2.35]
[1752458473826,6.1348,162.95,162.92,6.1355]
[1752458474134,5.16419493,162.97,162.92,2.35]
[1752458474334,6.1345,162.96,162.93,6.1353]
[1752458474533,3.59,162.96,162.92,2.35]
[1752458474925,3.59,162.96,162.93,5.33433641]
[1752458475129,3.59,162.96,162.94,2.35]
[1752458476235,3.59,162.96,162.95,6.1347]
[1752458476434,3.59,162.96,162.95,8.4847]
[1752458479132,3.59,162.96,162.95,11.46903641]
[1752458479535,9.92192527,162.98,162.96,6.1343]
[1752458479731,3.59,162.97,162.96,2.98433641]
[1752458480042,5.54564395,162.98,162.97,8.4639]
[1752458480227,5.16419493,163.04,162.97,2.33]
[1752458480429,8.75419493,163.05,163.04,2.33]
[1752458480631,3.59,163.05,163.04,8.4613]
[1752458481028,5.16419493,163.08,163.03,2.98433641]
[1752458481236,3.59,163.06,163.04,2.33]
[1752458481436,3.59,163.06,163.03,5.31433641]
[1752458482236,3.59,163.06,163.04,2.33]
[1752458482438,3.59,163.06,163.01,2.98433641]
[1752458482838,3.59,163.05,163.02,2.33]
[1752458483040,3.59,163.05,163.02,6.1317]
[1752458483239,3.59,163.05,163.04,2.33]
[1752458483433,3.59,163.07,163.04,2.33]
[1752458483834,2.98433641,163.11,163.05,2.33]
[1752458484032,3.59,163.06,163.05,2.33]
[1752458484236,3.59,163.06,163.05,5.31433641]
[1752458485136,3.59,163.06,162.93,536.95570706]
[1752458485344,3.59,163.06,163.02,2.33]
[1752458485536,3.59,163.05,163.04,2.33]
[1752458485735,3.59,163.08,163.06,2.33]
[1752458485933,3.59,163.08,163.05,2.33]
[1752458486337,3.59,163.08,163.07,2.33]
[1752458486736,3.59,163.08,163.01,2.33]
[1752458486940,3.59,163.08,163.01,5.31433641]
[1752458487441,3.59,163.06,163.0,2.98433641]
[1752458487636,3.59,163.06,162.97,177.6]
[1752458487637,2.98433641,163.05,162.98,2.98433641]
[1752458487837,6.1319,163.03,162.99,6.1328]
[1752458488040,3.59,163.02,162.99,6.1328]
[1752458488539,3.59,163.02,162.98,2.98433641]
[1752458489240,9.7223,163.02,162.98,9.11763641]
[1752458489441,3.59,163.01,162.98,9.11763641]
[1752458489642,3.59,163.01,162.98,2.98433641]
[1752458490240,3.59,163.01,162.99,6.1331]
[1752458490537,3.64,163.0,162.94,2.32]
[1752458490842,3.64,163.0,162.93,2.98433641]
[1752458491044,3.64,163.0,162.92,5.30433641]
[1752458491440,3.64,162.96,162.92,5.30433641]
[1752458492137,3.64,162.96,162.94,6.1349]
[1752458492439,3.64,162.96,162.94,2.98433641]
[1752458492637,3.64,163.0,162.94,2.98433641]
[1752458492833,3.64,162.97,162.94,9.11923641]
[1752458493235,3.67874065,162.97,162.92,2.32]
[1752458493438,3.67874065,162.97,162.93,2.98433641]
[1752458493846,6.17274065,162.97,162.93,9.11943641]
[1752458494143,3.64,162.96,162.93,2.98433641]
[1752458494547,3.64,162.96,162.94,6.1348]
[1752458495243,3.64,162.96,162.95,6.1347]
[1752458495941,3.64,162.96,162.95,9.11903641]
[1752458498039,3.64,162.96,162.95,2.98433641]
[1752458498842,3.64,162.96,162.95,11.43903641]
[1752458499046,3.64,162.96,162.95,9.11903641]
[1752458499949,3.64,162.96,162.95,11.43903641]
[1752458500140,0.03874065,162.97,162.96,8.4543]
[1752458500654,3.64,163.0,162.99,8.4532]
[1752458500847,5.16419493,163.07,162.99,2.98433641]
[1752458501044,3.64,163.01,163.0,8.4528]
[1752458501253,3.64,163.01,163.0,6.1328]
[1752458502153,3.64,163.01,163.0,9.11713641]
[1752458503046,3.64,163.01,163.0,2.98433641]
[1752458504652,3.64,163.01,163.0,9.11713641]
[1752458505252,3.64,163.01,163.0,11.43713641]
[1752458505750,3.64,163.04,163.01,2.32]
[1752458505951,3.64,163.04,163.02,2.98433641]
[1752458508550,9.7714,163.04,163.02,2.98433641]
[1752458508753,3.64,163.03,163.02,2.98433641]
[1752458509557,3.64,163.02,162.99,0.04086927]
[1752458509754,3.64,163.02,163.01,2.98433641]
[1752458511257,3.64,163.02,163.01,9.11673641]
[1752458511456,3.64,163.02,163.01,2.98433641]
[1752458513054,3.64,163.02,163.01,9.11673641]
[1752458513358,3.64,163.02,163.01,2.98433641]
[1752458514658,3.64,163.02,163.01,9.11673641]
[1752458516356,3.64,163.02,163.01,9.11133019]
[1752458516959,3.64,163.02,163.01,11.43133019]
[1752458517158,3.64,163.02,163.01,9.11133019]
[1752458517958,3.64,163.02,163.01,2.97893019]
[1752458520661,3.64,163.02,163.01,6.1324]
[1752458521562,3.64,163.02,163.0,9.11176145]
[1752458521761,3.64,163.02,162.99,0.04086927]
[1752458522265,3.36,163.01,162.99,6.17386927]
[1752458522455,3.36,163.0,162.99,6.17386927]
[1752458527367,3.36,163.0,162.99,8.50386927]
[1752458528967,6.1311,163.05,162.99,8.50386927]
[1752458529276,3.36,163.02,163.01,2.33]
[1752458529471,3.36,163.02,163.01,5.30906145]
[1752458529670,3.36,163.02,163.01,9.11146145]
[1752458529873,535.00419493,163.09,163.01,2.97906145]
[1752458530170,6.1302,163.07,163.04,9.11016145]
[1752458530371,6.1302,163.07,163.04,2.97906145]
[1752458530777,6.1302,163.07,163.04,3.01874364]
[1752458530971,535.00419493,163.09,163.04,9.14994364]
[1752458531171,5.16419493,163.08,163.04,9.14994364]
[1752458531478,11.29409493,163.08,163.04,9.14994364]
[1752458531676,5.16419493,163.08,163.04,9.14994364]
[1752458532175,3.36,163.07,163.04,9.14994364]
[1752458532774,3.36,163.07,163.04,3.01874364]
[1752458532974,3.36,163.06,163.04,0.03968219]
[1752458534275,9.4908,163.06,163.04,0.03968219]
[1752458534478,3.36,163.05,163.04,0.03968219]
[1752458534974,3.36,163.05,163.04,6.17098219]
[1752458536182,3.36,163.05,163.04,0.03968219]
[1752458538580,9.4909,163.05,163.04,0.03968219]
[1752458539382,3.36,163.05,163.04,0.03968219]
[1752458541682,9.4909,163.05,163.04,0.03968219]
[1752458542986,3.36,163.05,163.04,0.03968219]
[1752458543981,3.36,163.05,163.04,9.69098219]
[1752458545388,3.36,163.05,163.04,0.03968219]
[1752458547585,3.36,163.05,163.04,9.69098219]
[1752458551390,3.36,163.05,163.04,3.55968219]
[1752458551590,3.36,163.05,163.04,0.03968219]
[1752458552191,3.36,163.05,163.04,9.76098219]
[1752458553086,3.36,163.05,163.04,3.62968219]
[1752458553293,3.36,163.05,163.04,0.03968219]
[1752458553481,9.4909,163.05,163.04,0.03968219]
[1752458553983,9.4909,163.05,163.04,8.219e-05]
[1752458554186,6.133,163.0,162.98,3.59]
[1752458554400,3.42,162.99,162.93,3.59]
[1752458554687,3.42,162.99,162.92,724.44018538]
[1752458554688,9.5534,162.99,162.97,3.59]
[1752458554895,5.16120179,163.02,162.96,2.97848851]
[1752458555091,3.42,162.99,162.97,6.1338]
[1752458555291,3.42,163.01,162.99,3.59]
[1752458555495,3.42,163.02,163.01,3.59]
[1752458559300,3.42,163.03,163.02,3.59]
[1752458559497,3.42,163.03,163.02,6.56848851]
[1752458559697,3.42,163.03,163.02,2.97848851]
[1752458559893,3.42,163.01,162.99,6.56848851]
[1752458560099,3.42,163.01,162.99,2.97848851]
[1752458560399,9.5526,163.01,162.99,2.97848851]
[1752458560592,3.42,163.0,162.99,2.97848851]
[1752458562307,6.1328,163.0,162.98,3.59]
[1752458562501,3.42,162.99,162.98,3.59]
[1752458563504,3.42,162.99,162.98,9.7235]
[1752458563704,3.42,163.0,162.98,6.1335]
[1752458563905,3.42,163.0,162.99,3.59]
[1752458565396,2.97848851,163.06,163.0,3.59]
[1752458565397,3.42,163.02,163.0,3.59]
[1752458565799,3.42,163.02,163.01,6.1324]
[1752458566000,3.42,163.02,163.01,9.7224]
[1752458566201,3.42,163.02,163.01,3.59]
[1752458567802,3.42,163.03,163.01,3.59]
[1752458568211,3.42,163.03,163.02,3.59]
[1752458570010,3.42,163.03,163.0,9.7225]
[1752458570216,3.42,163.02,163.0,9.7225]
[1752458570705,9.5523,163.02,162.99,6.56848851]
[1752458570910,3.42,163.01,162.99,6.56848851]
[1752458571805,3.42,163.01,162.99,9.11138851]
[1752458572014,3.42,163.01,163.0,3.59]
[1752458573512,3.42,163.01,163.0,9.7228]
[1752458574713,3.42,163.03,163.0,3.59]
[1752458574913,5.15902406,163.05,163.01,2.97848851]
[1752458575113,3.42,163.04,163.02,3.59]
[1752458575518,6.1313,163.04,163.02,3.59]
[1752458575813,3.42,163.03,163.02,3.59]
[1752458576016,9.5517,163.03,163.02,3.59]
[1752458576313,3.42,163.02,163.01,6.56848851]
[1752458578018,3.42,163.02,163.01,12.70088851]
[1752458581017,3.45,163.03,163.01,9.11088851]
[1752458581224,3.45,163.04,163.02,3.48]
[1752458581415,3.45,163.04,163.03,6.45848851]
[1752458583218,3.45,163.04,163.03,12.59018851]
[1752458584226,3.45,163.04,163.03,6.45848851]
[1752458584522,6.1313,163.04,163.01,2.97848851]